[Event "Eurasia Open Cup 2019"]
[Site "Ekaterinburg"]
[Date "2019.08.03"]
[Round "4.38"]
[White "Pauli, Stanislav"]
[Black "Tsybikov, Tumen"]
[Result "0-1"]
[ECO "B51"]
[WhiteElo "1898"]
[BlackElo "2281"]
[Annotator "NA"]
[PlyCount "132"]
[EventDate "2019.07.31"]
[EventType "swiss"]
[EventCountry "RUS"]
[SourceTitle "playchess.com"]
[Source "ChessBase"]
[SourceQuality "1"]
[TimeControl "5400+30"]

1. Nf3 {[%emt 0:00:00]} c5 {[%emt 0:00:00]} 2. e4 {[%emt 0:00:00]} d6 {[%emt 0:00:00]} 3. Bb5+ {[%emt 0:00:00]} Nd7 {[%emt 0:00:00]} 4. O-O {[%emt 0:00:16]} a6 {[%emt 0:00:00]} 5. Bd3 {[%emt 0:00:00]} Ngf6 {[%emt 0:00:12]} 6. Re1 {[%emt 0:00:47]} e6 {[%emt 0:00:41]} 7. a4 {[%emt 0:00:11]} b6 {[%emt 0:01:42]} 8. c3 {[%emt 0:00:28]} Bb7 {[%emt 0:01:49]} 9. Na3 {[%emt 0:02:23]} Be7 {[%emt 0:01:49]} 10. Qe2 {[%emt 0:01:16]} O-O {[%emt 0:01:00]} 11. Bc2 {[%emt 0:00:08]} Qc7 {[%emt 0:07:21]} 12. h3 {[%emt 0:04:27]} Rac8 {[%emt 0:01:35]} 13. d3 {[%emt 0:00:11]} Rfe8 {[%emt 0:02:21]} 14. Bf4 {[%emt 0:00:37]} Nf8 {[%emt 0:03:28]} 15. Rac1 {[%emt 0:03:40]} e5 {[%emt 0:04:36]} 16. Bh2 {[%emt 0:00:00]} Ne6 {[%emt 0:00:10]} 17. Nc4 {[%emt 0:02:37]} Bf8 {[%emt 0:04:52]} 18. Ne3 {[%emt 0:21:40]} b5 {[%emt 0:01:42]} 19. axb5 {[%emt 0:05:11]} axb5 {[%emt 0:00:00]} 20. Bb3 {[%emt 0:08:39]} Nf4 {[%emt 0:20:14]} 21. Qd1 {[%emt 0:03:37]} Nxd3 {[%emt 0:06:09]} 22. Qxd3 {[%emt 0:00:26]} c4 {[%emt 0:00:06]} 23. Qf1 {[%emt 0:04:44]} cxb3 {[%emt 0:01:23]} 24. Qxb5 {[%emt 0:00:28]} Bxe4 {[%emt 0:01:13]} 25. Qxb3 {[%emt 0:01:21]} Rb8 {[%emt 0:03:26]} 26. Qc4 {[%emt 0:00:50]} Qxc4 {[%emt 0:02:45]} 27. Nxc4 {[%emt 0:00:07]} Bxf3 {[%emt 0:03:45]} 28. gxf3 {[%emt 0:00:07]} Rec8 {[%emt 0:00:03]} 29. Ne3 {[%emt 0:03:41]} Rxb2 {[%emt 0:00:00]} 30. c4 {[%emt 0:00:09]} Nd7 {[%emt 0:00:29]} 31. f4 {[%emt 0:00:42]} f6 {[%emt 0:01:05]} 32. Rb1 {[%emt 0:00:32]} Rcb8 {[%emt 0:00:09]} 33. Rxb2 {[%emt 0:02:08]} Rxb2 {[%emt 0:00:34]} 34. Rd1 {[%emt 0:01:02]} Nc5 {[%emt 0:00:05]} 35. f5 {[%emt 0:05:28]} Nb3 {[%emt 0:00:45]} 36. Kg2 {[%emt 0:08:19]} g6 {[%emt 0:03:20]} 37. Rd5 {[%emt 0:01:07]} Nd4 {[%emt 0:02:17]} 38. fxg6 {[%emt 0:05:40]} hxg6 {[%emt 0:05:29]} 39. Ra5 {[%emt 0:00:18]} Rb7 {[%emt 0:00:05]} 40. Nd5 {[%emt 0:00:22]} Kf7 {[%emt 0:00:48]} 41. Ra8 {[%emt 0:00:27]} Ne6 {[%emt 0:01:01]} 42. h4 {[%emt 0:00:54]} Nc7 {[%emt 0:00:07]} 43. Ra5 {[%emt 0:00:28]} Nxd5 {[%emt 0:00:48]} 44. cxd5 {[%emt 0:00:49]} Be7 {[%emt 0:01:34]} 45. f4 {[%emt 0:01:54]} Rb2+ {[%emt 0:00:28]} 46. Kh3 {[%emt 0:00:11]} Rb3+ {[%emt 0:01:00]} 47. Kg2 {[%emt 0:00:07]} Rb4 {[%emt 0:00:22]} 48. h5 {[%emt 0:04:20]} gxh5 {[%emt 0:01:53]} 49. f5 {[%emt 0:00:36]} Rb2+ {[%emt 0:01:43]} 50. Kg1 {[%emt 0:00:15]} h4 {[%emt 0:02:22]} 51. Ra1 {[%emt 0:03:39]} Rd2 {[%emt 0:02:22]} 52. Ra5 {[%emt 0:00:11]} h3 {[%emt 0:01:26]} 53. Rb5 {[%emt 0:02:39]} Rg2+ {[%emt 0:02:13]} 54. Kh1 {[%emt 0:01:42]} Rf2 {[%emt 0:00:31]} 55. Rb3 {[%emt 0:00:46]} Rxf5 {[%emt 0:00:59]} 56. Rxh3 {[%emt 0:01:56]} Rf2 {[%emt 0:02:50]} 57. Rh7+ {[%emt 0:00:06]} Kf8 {[%emt 0:00:26]} 58. Rh8+ {[%emt 0:00:50]} Kg7 {[%emt 0:00:45]} 59. Ra8 {[%emt 0:00:07]} Rd2 {[%emt 0:01:25]} 60. Ra5 {[%emt 0:00:12]} Kg6 {[%emt 0:00:08]} 61. Bg3 {[%emt 0:01:23]} Bf8 {[%emt 0:00:05]} 62. Kg1 {[%emt 0:00:20]} Bh6 {[%emt 0:00:21]} 63. Be1 {[%emt 0:00:07]} Rd1 {[%emt 0:00:19]} 64. Kf2 {[%emt 0:01:00]} Bd2 {[%emt 0:01:52]} 65. Bxd2 {[%emt 0:00:10]} Rxd2+ {[%emt 0:00:10]} 66. Ke3 {[%emt 0:00:43]} Rd4 {[%emt 0:00:17]} 0-1

[Event "Eurasia Open Cup 2019"]
[Site "Ekaterinburg"]
[Date "2019.08.03"]
[Round "4.39"]
[White "Isanzhulov, Arystan"]
[Black "Kirillov, Anton"]
[Result "1-0"]
[ECO "C02"]
[WhiteElo "2278"]
[BlackElo "1855"]
[Annotator "NA"]
[PlyCount "55"]
[EventDate "2019.07.31"]
[EventType "swiss"]
[EventCountry "RUS"]
[SourceTitle "playchess.com"]
[Source "ChessBase"]
[SourceQuality "1"]
[TimeControl "5400+30"]

1. e4 {[%emt 0:00:00]} c5 {[%emt 0:00:00]} 2. Nf3 {[%emt 0:00:00]} e6 {[%emt 0:00:00]} 3. c3 {[%emt 0:00:00]} d5 {[%emt 0:00:00]} 4. e5 {[%emt 0:01:42]} Nc6 {[%emt 0:00:55]} 5. d4 {[%emt 0:02:56]} Qb6 {[%emt 0:00:26]} 6. Na3 {[%emt 0:14:00]} cxd4 {[%emt 0:10:22]} 7. cxd4 {[%emt 0:00:04]} Bb4+ {[%emt 0:00:30]} 8. Bd2 {[%emt 0:00:04]} Bxa3 {[%emt 0:04:37]} 9. bxa3 {[%emt 0:00:36]} Nxd4 {[%emt 0:01:11]} 10. Qa4+ {[%emt 0:14:25]} Nc6 {[%emt 0:00:26]} 11. Bd3 {[%emt 0:00:14]} Bd7 {[%emt 0:07:59]} 12. Qf4 {[%emt 0:01:03]} Nge7 {[%emt 0:03:47]} 13. O-O {[%emt 0:07:47]} Ng6 {[%emt 0:03:23]} 14. Qg5 {[%emt 0:10:14]} Qc5 {[%emt 0:35:28]} 15. Rab1 {[%emt 0:06:34]} Qxa3 {[%emt 0:03:11]} 16. Rb3 {[%emt 0:00:35]} Qe7 {[%emt 0:05:03]} 17. Qg3 {[%emt 0:00:06]} O-O {[%emt 0:00:00]} 18. h4 {[%emt 0:00:36]} f5 {[%emt 0:01:01]} 19. exf6 {[%emt 0:03:55]} Qxf6 {[%emt 0:08:40]} 20. Rxb7 {[%emt 0:00:22]} Bc8 {[%emt 0:00:58]} 21. Rc7 {[%emt 0:01:03]} e5 {[%emt 0:01:50]} 22. Rc1 {[%emt 0:00:30]} Nd4 {[%emt 0:02:30]} 23. Nxd4 {[%emt 0:02:04]} exd4 {[%emt 0:00:31]} 24. h5 {[%emt 0:02:22]} Ne5 {[%emt 0:04:43]} 25. Bg5 {[%emt 0:00:15]} Qe6 {[%emt 0:00:05]} 26. Re7 {[%emt 0:00:31]} Nxd3 {[%emt 0:01:37]} 27. Rxe6 {[%emt 0:00:25]} Nxc1 {[%emt 0:00:20]} 28. Bh6 {[%emt 0:01:02]} 1-0

[Event "Eurasia Open Cup 2019"]
[Site "Ekaterinburg"]
[Date "2019.08.03"]
[Round "4.41"]
[White "Mamatov, Melis"]
[Black "Sosnina, Ekaterina"]
[Result "1-0"]
[ECO "B50"]
[WhiteElo "2269"]
[BlackElo "1800"]
[Annotator "NA"]
[PlyCount "96"]
[EventDate "2019.07.31"]
[EventType "swiss"]
[EventCountry "RUS"]
[SourceTitle "playchess.com"]
[Source "ChessBase"]
[SourceQuality "1"]
[TimeControl "5400+30"]

1. e4 {[%emt 0:00:00]} c5 {[%emt 0:00:00]} 2. Nf3 {[%emt 0:03:41]} d6 {[%emt 0:00:00]} 3. c3 {[%emt 0:00:45]} Nf6 {[%emt 0:00:54]} 4. h3 {[%emt 0:00:51]} Nc6 {[%emt 0:00:20]} 5. Bd3 {[%emt 0:00:15]} g6 {[%emt 0:00:10]} 6. Bc2 {[%emt 0:00:35]} Bg7 {[%emt 0:00:20]} 7. d3 {[%emt 0:00:11]} O-O {[%emt 0:05:37]} 8. Bg5 {[%emt 0:00:25]} d5 {[%emt 0:10:03]} 9. Qc1 {[%emt 0:03:22]} d4 {[%emt 0:08:58]} 10. Bh6 {[%emt 0:00:35]} c4 {[%emt 0:00:06]} 11. Bxg7 {[%emt 0:02:17]} Kxg7 {[%emt 0:00:11]} 12. e5 {[%emt 0:01:42]} Nd5 {[%emt 0:20:44]} 13. dxc4 {[%emt 0:01:26]} Nb6 {[%emt 0:00:05]} 14. b3 {[%emt 0:04:19]} d3 {[%emt 0:14:02]} 15. Bd1 {[%emt 0:00:25]} Nd7 {[%emt 0:07:14]} 16. Qe3 {[%emt 0:00:24]} Qa5 {[%emt 0:00:05]} 17. O-O {[%emt 0:05:13]} Ndxe5 {[%emt 0:01:29]} 18. Nxe5 {[%emt 0:00:46]} Qxe5 {[%emt 0:00:02]} 19. Qxd3 {[%emt 0:00:20]} Rd8 {[%emt 0:00:20]} 20. Qe2 {[%emt 0:00:44]} Qg5 {[%emt 0:07:43]} 21. Qe3 {[%emt 0:00:39]} Qxe3 {[%emt 0:06:12]} 22. fxe3 {[%emt 0:01:43]} Bf5 {[%emt 0:00:24]} 23. Be2 {[%emt 0:00:00]} Ne5 {[%emt 0:00:54]} 24. Na3 {[%emt 0:02:57]} Rd2 {[%emt 0:02:34]} 25. Rf2 {[%emt 0:00:47]} a6 {[%emt 0:01:07]} 26. c5 {[%emt 0:00:38]} Bd3 {[%emt 0:01:10]} 27. Bf3 {[%emt 0:01:26]} Nxf3+ {[%emt 0:01:02]} 28. gxf3 {[%emt 0:00:53]} Rxf2 {[%emt 0:04:52]} 29. Kxf2 {[%emt 0:00:00]} Bf5 {[%emt 0:00:10]} 30. h4 {[%emt 0:00:00]} Rd8 {[%emt 0:00:09]} 31. e4 {[%emt 0:00:10]} Be6 {[%emt 0:00:28]} 32. Ke3 {[%emt 0:00:10]} Rc8 {[%emt 0:00:09]} 33. b4 {[%emt 0:00:10]} b6 {[%emt 0:00:52]} 34. c4 {[%emt 0:09:09]} bxc5 {[%emt 0:00:31]} 35. b5 {[%emt 0:00:09]} axb5 {[%emt 0:00:35]} 36. cxb5 {[%emt 0:00:00]} Ra8 {[%emt 0:00:14]} 37. Nb1 {[%emt 0:00:00]} Bxa2 {[%emt 0:02:41]} 38. Nc3 {[%emt 0:07:01]} Bd5 {[%emt 0:02:30]} 39. Rxa8 {[%emt 0:00:00]} Bxa8 {[%emt 0:00:13]} 40. Na4 {[%emt 0:00:00]} Kh6 {[%emt 0:00:05]} 41. Nxc5 {[%emt 0:00:04]} Kh5 {[%emt 0:01:52]} 42. b6 {[%emt 0:00:20]} Kxh4 {[%emt 0:00:03]} 43. b7 {[%emt 0:01:51]} Bxb7 {[%emt 0:01:07]} 44. Nxb7 {[%emt 0:05:42]} Kg3 {[%emt 0:00:08]} 45. Nd8 {[%emt 0:07:23]} f5 {[%emt 0:00:04]} 46. exf5 {[%emt 0:00:04]} gxf5 {[%emt 0:00:30]} 47. Nc6 {[%emt 0:00:11]} e6 {[%emt 0:02:21]} 48. Nd4 {[%emt 0:10:26]} f4+ {[%emt 0:00:06]} 1-0

[Event "Eurasia Open Cup 2019"]
[Site "Ekaterinburg"]
[Date "2019.08.03"]
[Round "4.42"]
[White "Pogromsky, Mikhail"]
[Black "Ryabikov, Vladislav"]
[Result "1-0"]
[ECO "A05"]
[WhiteElo "2414"]
[BlackElo "1719"]
[Annotator "NA"]
[PlyCount "37"]
[EventDate "2019.07.31"]
[EventType "swiss"]
[EventCountry "RUS"]
[SourceTitle "playchess.com"]
[Source "ChessBase"]
[SourceQuality "1"]
[TimeControl "5400+30"]

1. Nf3 {[%emt 0:00:00]} Nf6 {[%emt 0:00:00]} 2. b3 {[%emt 0:00:10]} g6 {[%emt 0:01:20]} 3. Bb2 {[%emt 0:00:20]} Bg7 {[%emt 0:00:05]} 4. g3 {[%emt 0:01:45]} O-O {[%emt 0:01:35]} 5. Bg2 {[%emt 0:00:05]} d5 {[%emt 0:03:37]} 6. c4 {[%emt 0:00:45]} c5 {[%emt 0:04:38]} 7. cxd5 {[%emt 0:00:36]} Nxd5 {[%emt 0:01:21]} 8. Bxg7 {[%emt 0:01:41]} Kxg7 {[%emt 0:00:10]} 9. O-O {[%emt 0:04:23]} Nc6 {[%emt 0:04:28]} 10. d4 {[%emt 0:04:18]} cxd4 {[%emt 0:01:47]} 11. Nxd4 {[%emt 0:00:20]} Nxd4 {[%emt 0:00:30]} 12. Qxd4+ {[%emt 0:00:05]} Nf6 {[%emt 0:00:05]} 13. Qe5 {[%emt 0:03:45]} Qb6 {[%emt 0:06:33]} 14. Nc3 {[%emt 0:02:11]} Be6 {[%emt 0:02:02]} 15. Na4 {[%emt 0:02:32]} Qb4 {[%emt 0:05:30]} 16. Nc5 {[%emt 0:04:04]} Bd5 {[%emt 0:05:09]} 17. Qxe7 {[%emt 0:04:25]} Qb5 {[%emt 0:07:16]} 18. Bxd5 {[%emt 0:01:06]} Nxd5 {[%emt 0:00:10]} 19. Qe5+ {[%emt 0:00:05]} 1-0

[Event "Eurasia Open Cup 2019"]
[Site "Ekaterinburg"]
[Date "2019.08.03"]
[Round "4.43"]
[White "Hamitevici, Vladimir"]
[Black "Gabdrakhmanov, Azat"]
[Result "0-1"]
[ECO "E81"]
[WhiteElo "2480"]
[BlackElo "2111"]
[Annotator "ChessBase"]
[PlyCount "96"]
[EventDate "2019.07.31"]
[EventType "swiss"]
[EventCountry "RUS"]
[SourceTitle "playchess.com"]
[Source "ChessBase"]
[SourceQuality "1"]
[TimeControl "5400+30"]

1. d4 {[%emt 0:00:00]} Nf6 {[%emt 0:00:00]} 2. c4 {[%emt 0:00:00]} g6 {[%emt 0:00:00]} 3. Nc3 {[%emt 0:00:36]} Bg7 {[%emt 0:00:00]} 4. e4 {[%emt 0:00:35]} d6 {[%emt 0:00:00]} 5. f3 {[%emt 0:01:00]} O-O {[%emt 0:00:04]} 6. Be3 {[%emt 0:00:06]} a6 {[%emt 0:00:10]} 7. Nge2 {[%emt 0:00:50]} c6 {[%emt 0:00:16]} 8. Qd2 {[%emt 0:16:00]} b5 {[%emt 0:00:15]} 9. b3 {[%emt 0:01:01]} Nbd7 {[%emt 0:00:45]} 10. Rd1 {[%emt 0:07:16]} Qa5 {[%emt 0:02:28]} 11. Nc1 {[%emt 0:13:59]} Bb7 {[%emt 0:08:32]} 12. Nb1 {[%emt 0:11:42]} Qc7 {[%emt 0:03:22]} 13. Nd3 {[%emt 0:02:27]} Nb6 {[%emt 0:03:30]} 14. c5 {[%emt 0:02:08]} Nbd7 {[%emt 0:00:20]} 15. cxd6 {[%emt 0:12:32]} exd6 {[%emt 0:00:05]} 16. Rc1 {[%emt 0:00:24]} Qd8 {[%emt 0:04:01]} 17. Be2 {[%emt 0:02:11]} Re8 {[%emt 0:01:35]} 18. O-O {[%emt 0:02:24]} Qe7 {[%emt 0:02:16]} 19. Rfe1 {[%emt 0:01:56]} Rac8 {[%emt 0:01:07]} 20. b4 {[%emt 0:02:26]} Nb6 {[%emt 0:01:47]} 21. Na3 {[%emt 0:00:34]} Nfd7 {[%emt 0:00:49]} 22. Bf1 {[%emt 0:01:12]} Qf8 {[%emt 0:02:48]} 23. g4 {[%emt 0:02:23]} Na4 {[%emt 0:04:49]} 24. Nf2 {[%emt 0:07:06]} c5 {[%emt 0:02:59]} 25. Nc2 {[%emt 0:02:08]} c4 {[%emt 0:00:37]} 26. Bg2 {[%emt 0:01:12]} Ndb6 {[%emt 0:01:17]} 27. Bf4 {[%emt 0:01:21]} c3 {[%emt 0:01:12]} 28. Qe2 {[%emt 0:00:04]} Nd5 {[%emt 0:00:31]} 29. Bg3 {[%emt 0:00:32]} Bh6 {[%emt 0:00:36]} 30. Rb1 {[%emt 0:00:18]} Nf4 {[%emt 0:01:29]} 31. Qf1 {[%emt 0:00:09]} Nb6 {[%emt 0:00:54]} 32. Nd3 {[%emt 0:02:22]} Nxg2 {[%emt 0:00:09]} 33. Qxg2 {[%emt 0:00:14]} Nc4 {[%emt 0:00:05]} 34. h4 {[%emt 0:00:51]} Bd2 {[%emt 0:02:21]} 35. Re2 {[%emt 0:00:05]} Qg7 {[%emt 0:00:04]} 36. Bf4 {[%emt 0:00:55]} Na3 {[%emt 0:01:04]} 37. Rxd2 {[%emt 0:00:36]} cxd2 {[%emt 0:00:35]} 38. Nxa3 {[%emt 0:00:05]} Rc3 {[%emt 0:00:36]} 39. Nf2 {[%emt 0:01:07]} Rxa3 {[%emt 0:00:02]} 40. Bxd2 {[%emt 0:00:03]} Qxd4 {[%emt 0:02:32]} 41. Bh6 {[%emt 0:00:04]} Rxa2 {[%emt 0:00:27]} 42. Rd1 {[%emt 0:00:09]} Qxd1+ {[%emt 0:00:40]} 43. Nxd1 {[%emt 0:00:00]} Rxg2+ {[%emt 0:00:13]} 44. Kxg2 {[%emt 0:00:14]} d5 {[%emt 0:00:00]} 45. exd5 {[%emt 0:00:04]} Bxd5 {[%emt 0:00:49]} 46. Kf2 {[%emt 0:00:14]} f6 {[%emt 0:00:00]} 47. Be3 {[%emt 0:00:15]} Rc8 {[%emt 0:00:44]} 48. Bd2 {[%emt 0:00:39]} Rc2 {[%emt 0:01:31]} 0-1

[Event "Eurasia Open Cup 2019"]
[Site "Ekaterinburg"]
[Date "2019.08.03"]
[Round "4.44"]
[White "Dilmukhametov, Artur"]
[Black "Mukhina, Jana"]
[Result "1-0"]
[ECO "A25"]
[WhiteElo "2346"]
[BlackElo "2090"]
[Annotator "NA"]
[PlyCount "107"]
[EventDate "2019.07.31"]
[EventType "swiss"]
[EventCountry "RUS"]
[SourceTitle "playchess.com"]
[Source "ChessBase"]
[SourceQuality "1"]
[TimeControl "5400+30"]

1. c4 {[%emt 0:00:00]} Nf6 {[%emt 0:00:00]} 2. Nc3 {[%emt 0:00:00]} g6 {[%emt 0:00:00]} 3. g3 {[%emt 0:00:31]} Bg7 {[%emt 0:00:00]} 4. Bg2 {[%emt 0:00:05]} O-O {[%emt 0:00:00]} 5. e3 {[%emt 0:00:35]} e5 {[%emt 0:02:19]} 6. Nge2 {[%emt 0:01:20]} Re8 {[%emt 0:12:08]} 7. d3 {[%emt 0:01:31]} Nc6 {[%emt 0:03:42]} 8. O-O {[%emt 0:00:30]} d6 {[%emt 0:00:36]} 9. a3 {[%emt 0:00:35]} Be6 {[%emt 0:03:07]} 10. Qc2 {[%emt 0:11:25]} Qd7 {[%emt 0:10:26]} 11. b3 {[%emt 0:08:18]} Bh3 {[%emt 0:07:06]} 12. Bb2 {[%emt 0:01:16]} h5 {[%emt 0:02:27]} 13. Nd5 {[%emt 0:09:03]} Nxd5 {[%emt 0:06:43]} 14. cxd5 {[%emt 0:00:54]} Bxg2 {[%emt 0:00:10]} 15. Kxg2 {[%emt 0:00:05]} Ne7 {[%emt 0:00:15]} 16. e4 {[%emt 0:10:04]} c6 {[%emt 0:00:14]} 17. dxc6 {[%emt 0:00:20]} Qxc6 {[%emt 0:01:19]} 18. Rac1 {[%emt 0:01:32]} Qxc2 {[%emt 0:02:47]} 19. Rxc2 {[%emt 0:00:04]} Rac8 {[%emt 0:00:44]} 20. Rfc1 {[%emt 0:03:02]} Rxc2 {[%emt 0:03:13]} 21. Rxc2 {[%emt 0:00:00]} Rc8 {[%emt 0:02:10]} 22. Rxc8+ {[%emt 0:01:47]} Nxc8 {[%emt 0:00:00]} 23. d4 {[%emt 0:00:48]} Nb6 {[%emt 0:03:30]} 24. f4 {[%emt 0:04:05]} f6 {[%emt 0:01:35]} 25. Nc1 {[%emt 0:11:03]} Kf7 {[%emt 0:04:16]} 26. Nd3 {[%emt 0:01:00]} Nd7 {[%emt 0:01:41]} 27. Kf3 {[%emt 0:01:32]} Ke6 {[%emt 0:01:11]} 28. f5+ {[%emt 0:09:47]} Kf7 {[%emt 0:02:12]} 29. g4 {[%emt 0:04:16]} hxg4+ {[%emt 0:04:01]} 30. Kxg4 {[%emt 0:00:05]} g5 {[%emt 0:00:49]} 31. a4 {[%emt 0:04:12]} Bf8 {[%emt 0:00:36]} 32. Nb4 {[%emt 0:00:01]} Nb8 {[%emt 0:02:02]} 33. Nc2 {[%emt 0:00:26]} Nc6 {[%emt 0:00:53]} 34. Bc3 {[%emt 0:05:17]} Be7 {[%emt 0:01:07]} 35. d5 {[%emt 0:02:28]} Nb8 {[%emt 0:03:43]} 36. Bd2 {[%emt 0:01:36]} Bd8 {[%emt 0:01:17]} 37. Be3 {[%emt 0:02:46]} a6 {[%emt 0:02:34]} 38. Na3 {[%emt 0:00:03]} Nd7 {[%emt 0:00:09]} 39. Nc4 {[%emt 0:00:25]} Bc7 {[%emt 0:01:25]} 40. b4 {[%emt 0:00:06]} b6 {[%emt 0:04:39]} 41. a5 {[%emt 0:00:39]} b5 {[%emt 0:01:43]} 42. Nb6 {[%emt 0:01:48]} Nf8 {[%emt 0:01:38]} 43. Kh5 {[%emt 0:01:32]} Bb8 {[%emt 0:05:04]} 44. Nc8 {[%emt 0:00:29]} Nd7 {[%emt 0:02:41]} 45. Kh6 {[%emt 0:00:48]} Bc7 {[%emt 0:01:10]} 46. Ba7 {[%emt 0:00:07]} Nf8 {[%emt 0:01:14]} 47. Bb6 {[%emt 0:01:03]} Bb8 {[%emt 0:01:28]} 48. Bd8 {[%emt 0:00:34]} Nd7 {[%emt 0:00:10]} 49. Be7 {[%emt 0:00:41]} Ke8 {[%emt 0:00:20]} 50. Bxd6 {[%emt 0:01:12]} Kd8 {[%emt 0:01:03]} 51. Bxb8 {[%emt 0:00:16]} Nxb8 {[%emt 0:00:33]} 52. Nb6 {[%emt 0:00:10]} Ke7 {[%emt 0:00:08]} 53. Kg6 {[%emt 0:00:18]} g4 {[%emt 0:00:29]} 54. Kg7 {[%emt 0:00:16]} 1-0

[Event "Eurasia Open Cup 2019"]
[Site "Ekaterinburg"]
[Date "2019.08.03"]
[Round "4.45"]
[White "Semenova, Elena"]
[Black "Grebnev, Aleksey"]
[Result "1-0"]
[ECO "C03"]
[WhiteElo "2286"]
[BlackElo "2093"]
[Annotator "NA"]
[PlyCount "109"]
[EventDate "2019.07.31"]
[EventType "swiss"]
[EventCountry "RUS"]
[SourceTitle "playchess.com"]
[Source "ChessBase"]
[SourceQuality "1"]
[TimeControl "5400+30"]

1. e4 {[%emt 0:00:00]} e6 {[%emt 0:00:00]} 2. d4 {[%emt 0:00:00]} d5 {[%emt 0:00:00]} 3. Nd2 {[%emt 0:00:05]} h6 {[%emt 0:00:00]} 4. Ngf3 {[%emt 0:02:26]} Nf6 {[%emt 0:00:00]} 5. Bd3 {[%emt 0:02:15]} c5 {[%emt 0:00:04]} 6. e5 {[%emt 0:00:55]} Nfd7 {[%emt 0:00:11]} 7. c3 {[%emt 0:22:30]} Nc6 {[%emt 0:02:26]} 8. O-O {[%emt 0:03:53]} Qb6 {[%emt 0:01:42]} 9. dxc5 {[%emt 0:01:22]} Qc7 {[%emt 0:01:21]} 10. Nb3 {[%emt 0:03:36]} Nxc5 {[%emt 0:00:15]} 11. Nxc5 {[%emt 0:04:28]} Bxc5 {[%emt 0:00:05]} 12. Bf4 {[%emt 0:01:06]} Bd7 {[%emt 0:00:25]} 13. Bg3 {[%emt 0:02:22]} Be7 {[%emt 0:03:13]} 14. Qe2 {[%emt 0:02:23]} g5 {[%emt 0:02:57]} 15. Nd4 {[%emt 0:03:04]} Nxd4 {[%emt 0:01:25]} 16. cxd4 {[%emt 0:00:05]} Qb6 {[%emt 0:00:31]} 17. Rac1 {[%emt 0:08:17]} h5 {[%emt 0:02:07]} 18. f3 {[%emt 0:03:23]} Qxd4+ {[%emt 0:02:03]} 19. Bf2 {[%emt 0:01:29]} Qb4 {[%emt 0:01:53]} 20. a3 {[%emt 0:05:41]} Qa5 {[%emt 0:00:15]} 21. Rc3 {[%emt 0:00:48]} Qd8 {[%emt 0:03:41]} 22. Rfc1 {[%emt 0:01:13]} Kf8 {[%emt 0:01:28]} 23. b4 {[%emt 0:03:07]} Kg7 {[%emt 0:01:26]} 24. Bc5 {[%emt 0:04:00]} Rc8 {[%emt 0:02:16]} 25. Bxa7 {[%emt 0:08:58]} Rxc3 {[%emt 0:02:38]} 26. Rxc3 {[%emt 0:00:00]} Qa8 {[%emt 0:04:09]} 27. Bc5 {[%emt 0:04:11]} Bd8 {[%emt 0:00:19]} 28. Bb5 {[%emt 0:01:11]} Bxb5 {[%emt 0:01:01]} 29. Qxb5 {[%emt 0:00:00]} Qb8 {[%emt 0:00:43]} 30. Bd4 {[%emt 0:03:04]} Bc7 {[%emt 0:00:05]} 31. Qe2 {[%emt 0:00:48]} Rc8 {[%emt 0:00:23]} 32. Qc2 {[%emt 0:03:58]} Bxe5 {[%emt 0:02:26]} 33. Rxc8 {[%emt 0:00:09]} Bxd4+ {[%emt 0:00:00]} 34. Kh1 {[%emt 0:00:13]} Qe5 {[%emt 0:00:09]} 35. Qd1 {[%emt 0:01:17]} h4 {[%emt 0:00:37]} 36. Rc2 {[%emt 0:00:44]} Kh6 {[%emt 0:01:16]} 37. Qe2 {[%emt 0:00:54]} Be3 {[%emt 0:00:36]} 38. Rc1 {[%emt 0:02:19]} d4 {[%emt 0:02:45]} 39. Rd1 {[%emt 0:00:36]} f5 {[%emt 0:01:13]} 40. a4 {[%emt 0:00:22]} Qc7 {[%emt 0:00:45]} 41. Qa2 {[%emt 0:00:24]} Qd6 {[%emt 0:00:03]} 42. Qb3 {[%emt 0:00:39]} Bf4 {[%emt 0:00:46]} 43. Qd3 {[%emt 0:00:59]} Be5 {[%emt 0:00:18]} 44. Qb5 {[%emt 0:00:58]} h3 {[%emt 0:02:14]} 45. Qc5 {[%emt 0:00:18]} hxg2+ {[%emt 0:00:02]} 46. Kxg2 {[%emt 0:00:03]} Qb8 {[%emt 0:02:01]} 47. Re1 {[%emt 0:00:31]} Bxh2 {[%emt 0:00:49]} 48. Rxe6+ {[%emt 0:00:00]} Kh5 {[%emt 0:02:33]} 49. Qxf5 {[%emt 0:00:27]} Qg3+ {[%emt 0:00:51]} 50. Kf1 {[%emt 0:00:43]} Qg1+ {[%emt 0:00:00]} 51. Ke2 {[%emt 0:00:51]} d3+ {[%emt 0:00:00]} 52. Qxd3 {[%emt 0:00:04]} Kh4 {[%emt 0:00:09]} 53. Rh6+ {[%emt 0:00:00]} Kg3 {[%emt 0:00:00]} 54. Qd6+ {[%emt 0:00:53]} Kg2 {[%emt 0:00:12]} 55. Qxh2+ {[%emt 0:00:26]} 1-0